fUST/lending_fUST_20250221
["ID","MTS","AMOUNT","RATE_DAILY","PERIOD"]
[353832078,1740083451134,-500.0,0.00014027,2]
[353832079,1740083451143,-500.0,0.00014027,2]
[353832080,1740083451154,-722.07,0.00014027,2]
[353832081,1740083451164,-514.06,0.00014027,2]
[353832082,1740083451174,-3817.32,0.00014027,2]
[353832083,1740083451184,-2046.35,0.00014027,2]
[353832084,1740083451193,-500.0,0.00014027,2]
[353832085,1740083451203,-3368.27,0.00014027,2]
[353832086,1740083451212,-500.0,0.00014027,2]
[353832087,1740083451221,-560.15,0.00014027,2]
[353832088,1740083451231,-500.0,0.00014027,2]
[353832089,1740083451241,-998.57,0.00014027,2]
[353832090,1740083451252,-1492.11,0.00014027,2]
[353832091,1740083451261,-2086.24,0.00014027,2]
[353832092,1740083451270,-500.0,0.00014027,2]
[353832093,1740083451280,-500.0,0.00014027,2]
[353832094,1740083451291,-500.0,0.00014027,2]
[353832095,1740083451300,-1276.48,0.00014027,2]
[353832096,1740083451310,-500.0,0.00014027,2]
[353832097,1740083451319,-500.0,0.00014027,2]
[353832098,1740083451330,-500.0,0.00014027,2]
[353832099,1740083451340,-500.0,0.00014027,2]
[353832100,1740083451349,-500.0,0.00014027,2]
[353832101,1740083451359,-1532.03,0.00014027,2]
[353832102,1740083451369,-500.0,0.00014027,2]
[353832103,1740083451380,-523.05,0.00014027,2]
[353832104,1740083451389,-500.0,0.00014027,2]
[353832105,1740083451399,-500.0,0.00014027,2]
[353832106,1740083451409,-500.0,0.00014027,2]
[353832107,1740083451419,-500.0,0.00014027,2]
[353832108,1740083451429,-500.0,0.00014027,2]
[353832109,1740083451439,-500.0,0.00014027,2]
[353832110,1740083451449,-500.0,0.00014027,2]
[353832111,1740083451460,-500.0,0.00014027,2]
[353832112,1740083451472,-548.69,0.00014027,2]
[353832113,1740083451482,-730.64,0.00014027,2]
[353832114,1740083451492,-5562.85,0.00014027,2]
[353832115,1740083451503,-502.24315677,0.00014027,2]
[353832116,1740083451513,-1266.77,0.00014027,2]
[353832117,1740083451524,-1810.56,0.00014027,2]
[353832118,1740083451534,-500.0,0.00014027,2]
[353832119,1740083451545,-6428.59,0.00014027,2]
[353832120,1740083451555,-500.0,0.00014027,2]
[353832121,1740083451564,-500.0,0.00014027,2]
[353832122,1740083451574,-599.39,0.00014027,2]
[353832123,1740083451585,-13589.0,0.00014027,2]
[353832124,1740083451595,-1627.47,0.00014027,2]
[353832125,1740083451604,-500.0,0.00014027,2]
[353832126,1740083451614,-500.0,0.00014027,2]
[353832127,1740083451624,-175.74853717,0.00014027,2]
[353832128,1740083451633,-500.0,0.00014109,2]
[353832129,1740083451644,-506.13785597,0.00014109,2]
[353832130,1740083451654,-500.0,0.00014109,2]
[353832131,1740083451663,-500.0,0.00014109,2]
[353832132,1740083451673,-500.0,0.00014109,2]
[353832133,1740083451684,-500.0,0.00014109,2]
[353832134,1740083451694,-500.0,0.00014109,2]
[353832135,1740083451703,-500.0,0.00014109,2]
[353832136,1740083451713,-500.0,0.00014109,2]
[353832137,1740083451722,-500.0,0.00014109,2]
[353832138,1740083451733,-502.46514565,0.00014109,2]
[353832139,1740083451743,-500.0,0.00014109,2]
[353832140,1740083451751,-500.0,0.00014109,2]
[353832141,1740083451761,-500.0,0.00014109,2]
[353832142,1740083451770,-500.0,0.00014109,2]
[353832143,1740083451779,-500.0,0.00014109,2]
[353832144,1740083451788,-500.0,0.00014109,2]
[353832145,1740083451798,-500.0,0.00014109,2]
[353832146,1740083451808,-500.0,0.00014109,2]
[353832147,1740083451817,-500.0,0.00014109,2]
[353832148,1740083451826,-500.0,0.00014109,2]
[353832149,1740083451836,-205.39338985,0.00014109,2]
[353832150,1740083451846,-1344.33,0.00014109,2]
[353832151,1740083451856,-500.0,0.00014109,2]
[353832152,1740083451866,-690.08,0.00014109,2]
[353832153,1740083451875,-503.20914958,0.00014109,2]
[353832154,1740083451885,-500.0,0.00014109,2]
[353832155,1740083451895,-841.22,0.00014109,2]
[353832156,1740083451905,-500.0,0.00014109,2]
[353832157,1740083451915,-626.22,0.00014109,2]
[353832158,1740083451925,-388.91692074,0.00014109,2]
[353832159,1740083451935,-500.0,0.00014109,2]
[353832160,1740083451945,-500.0,0.00014109,2]
[353832161,1740083451955,-500.0,0.00014109,2]
[353832162,1740083451964,-500.0,0.00014109,2]
[353832163,1740083451974,-567.91,0.00014109,2]
[353832164,1740083451983,-500.0,0.00014109,2]
[353832165,1740083451993,-500.0,0.00014109,2]
[353832166,1740083452002,-500.0,0.00014109,2]
[353832167,1740083452012,-500.0,0.00014109,2]
[353832168,1740083452022,-500.0,0.00014109,2]
[353832169,1740083452033,-510.4,0.00014109,2]
[353832170,1740083452044,-969.2,0.00014109,2]
[353832171,1740083452055,-622.21,0.00014109,2]
[353832172,1740083452066,-307.51127372,0.00014109,2]
[353832173,1740083452078,-500.0,0.00014109,2]
[353832174,1740083452087,-500.0,0.00014109,2]
[353832175,1740083452096,-541.46,0.00014109,2]
[353832176,1740083452107,-500.0,0.00014109,2]
[353832177,1740083452118,-624.73,0.00014109,2]
[353832178,1740083452127,-500.0,0.00014109,2]
[353832179,1740083452136,-500.0,0.00014109,2]
[353832180,1740083452147,-681.71,0.00014109,2]
[353832181,1740083452156,-1160.78,0.00014109,2]
[353832182,1740083452165,-500.0,0.00014109,2]
[353832183,1740083452175,-565.57,0.00014109,2]
[353832184,1740083452185,-500.0,0.00014109,2]
[353832185,1740083452195,-500.0,0.00014109,2]
[353832186,1740083452205,-500.0,0.00014109,2]
[353832187,1740083452214,-500.0,0.00014109,2]
[353832188,1740083452223,-500.0,0.00014109,2]
[353832189,1740083452232,-508.08,0.00014109,2]
[353832190,1740083452243,-973.34,0.00014109,2]
[353832191,1740083452253,-500.0,0.00014109,2]
[353832192,1740083452263,-500.0,0.00014109,2]
[353832193,1740083452273,-500.0,0.00014109,2]
[353832194,1740083452282,-500.0,0.00014109,2]
[353832195,1740083452291,-500.0,0.00014109,2]
[353832196,1740083452301,-735.52,0.00014109,2]
[353832197,1740083452311,-500.0,0.00014109,2]
[353832198,1740083452320,-500.0,0.00014109,2]
[353832199,1740083452330,-500.0,0.00014109,2]
[353832200,1740083452339,-578.73,0.00014109,2]
[353832201,1740083452348,-631.42,0.00014109,2]
[353832202,1740083452359,-500.0,0.00014109,2]
[353832203,1740083452368,-502.98220801,0.00014109,2]
[353832204,1740083452377,-500.0,0.00014109,2]
[353832205,1740083452387,-500.0,0.00014109,2]
[353832206,1740083452396,-630.95,0.00014109,2]
[353832207,1740083452406,-500.0,0.00014109,2]
[353832208,1740083452416,-500.0,0.00014109,2]
[353832209,1740083452426,-500.0,0.00014109,2]
[353832210,1740083452436,-500.0,0.00014109,2]
[353832211,1740083452445,-534.77,0.00014109,2]
[353832212,1740083452455,-500.0,0.00014109,2]
[353832213,1740083452465,-500.0,0.00014109,2]
[353832214,1740083452475,-662.16,0.00014109,2]
[353832215,1740083452485,-3140.73,0.00014109,2]
[353832216,1740083452495,-615.68,0.00014109,2]
[353832217,1740083452504,-547.69,0.00014109,2]
[353832218,1740083452514,-1777.49,0.00014109,2]
[353832219,1740083452523,-500.0,0.00014109,2]
[353832220,1740083452617,-500.0,0.00014109,2]
[353832221,1740083452628,-500.0,0.00014109,2]
[353832222,1740083452638,-500.0,0.00014109,2]
[353832223,1740083452648,-500.0,0.00014109,2]
[353832224,1740083452657,-1398.84,0.00014109,2]
[353832225,1740083452667,-730.21,0.00014109,2]
[353832226,1740083452677,-500.0,0.00014109,2]
[353832227,1740083452687,-796.15,0.00014109,2]
[353832228,1740083452696,-908.79,0.00014109,2]
[353832229,1740083452706,-549.32,0.00014109,2]
[353832230,1740083452716,-14912.38,0.00014109,2]
[353832231,1740083452725,-565.49689721,0.00014109,2]
[353832232,1740083452735,-500.0,0.00014109,2]
[353832233,1740083452744,-2801.65,0.00014109,2]
[353832234,1740083452753,-500.0,0.00014109,2]
[353832235,1740083452763,-500.0,0.00014109,2]
[353832236,1740083452772,-1082.16,0.00014109,2]
[353832237,1740083452782,-42237.27,0.00014109,2]
[353832238,1740083452791,-1101.55,0.00014109,2]
[353832239,1740083452800,-1138.49,0.00014109,2]
[353832240,1740083452811,-2990.03,0.00014109,2]
[353832241,1740083452821,-2277.37,0.00014109,2]
[353832242,1740083452831,-500.0,0.00014109,2]
[353832243,1740083452841,-6484.48,0.00014109,2]
[353832244,1740083452851,-500.0,0.00014109,2]
[353832245,1740083452860,-500.0,0.00014109,2]
[353832246,1740083452870,-506.49934828,0.00014109,2]
[353832247,1740083452880,-1166.9,0.00014109,2]
[353832248,1740083452890,-500.0,0.00014109,2]
[353832249,1740083452899,-500.0,0.00014109,2]
[353832250,1740083452909,-619.06561779,0.00014109,2]
[353832251,1740083452919,-500.0,0.00014109,2]
[353832252,1740083452930,-500.0,0.00014109,2]
[353832253,1740083452939,-500.0,0.00014109,2]
[353832254,1740083452949,-722.07,0.00014109,2]
[353832255,1740083452959,-514.06,0.00014109,2]
[353832256,1740083452969,-3817.32,0.00014109,2]
[353832257,1740083452978,-2046.35,0.00014109,2]
[353832258,1740083452988,-500.0,0.00014109,2]
[353832259,1740083452998,-3368.27,0.00014109,2]
[353832260,1740083453008,-500.0,0.00014109,2]
[353832261,1740083453017,-560.15,0.00014109,2]
[353832262,1740083453028,-998.57,0.00014109,2]
[353832263,1740083453042,-1492.11,0.00014109,2]
[353832264,1740083453052,-2086.24,0.00014109,2]
[353832265,1740083453062,-500.0,0.00014109,2]
[353832266,1740083453072,-500.0,0.00014109,2]
[353832267,1740083453082,-500.0,0.00014109,2]
[353832268,1740083453092,-1276.48,0.00014109,2]
[353832269,1740083453102,-500.0,0.00014109,2]
[353832270,1740083453113,-500.0,0.00014109,2]
[353832271,1740083453123,-500.0,0.00014109,2]
[353832272,1740083453133,-500.0,0.00014109,2]
[353832273,1740083453143,-500.0,0.00014109,2]
[353832274,1740083453153,-1532.03,0.00014109,2]
[353832275,1740083453162,-500.0,0.00014109,2]
[353832276,1740083453171,-523.05,0.00014109,2]
[353832277,1740083453180,-500.0,0.00014109,2]
[353832278,1740083453190,-500.0,0.00014109,2]
[353832279,1740083453199,-500.0,0.00014109,2]
[353832280,1740083453209,-500.0,0.00014109,2]
[353832281,1740083453219,-500.0,0.00014109,2]
[353832282,1740083453228,-431.14371263,0.00014109,2]
[353832283,1740083453238,-500.0,0.00014109,2]
[353832284,1740083453248,-500.0,0.00014109,2]
[353832285,1740083453257,-548.69,0.00014109,2]
[353832286,1740083453267,-730.64,0.00014109,2]
[353832287,1740083453276,-5562.85,0.00014109,2]
[353832288,1740083453286,-1266.77,0.00014109,2]
[353832289,1740083453296,-1810.56,0.00014109,2]
[353832290,1740083453305,-500.0,0.00014109,2]
[353832291,1740083453315,-6428.59,0.00014109,2]
[353832292,1740083453325,-506.55284044,0.00014109,2]
[353832293,1740083453335,-500.0,0.00014109,2]
[353832294,1740083453344,-599.39,0.00014109,2]
[353832295,1740083453354,-13589.0,0.00014109,2]
[353832296,1740083453364,-1627.47,0.00014109,2]
[353832297,1740083453374,-337.822169,0.00014109,2]
[353832298,1740083453384,-161.081112,0.00014112,2]
[353832299,1740083453394,-278.18553883,0.00014118,2]
[353832300,1740083453403,-538.0,0.00014159,2]
[353832301,1740083453412,-1969.0,0.00014159,2]
[353832302,1740083453422,-2287.0,0.00014159,2]
[353832303,1740083453431,-500.0,0.00014173,2]
[353832304,1740083453442,-500.0,0.00014173,2]
[353832305,1740083453453,-500.0,0.00014191,2]
[353832306,1740083453462,-500.0,0.00014191,2]
[353832307,1740083453472,-500.0,0.00014191,2]
[353832308,1740083453482,-500.0,0.00014191,2]
[353832309,1740083453491,-500.0,0.00014191,2]
[353832310,1740083453501,-325.56346102,0.00014191,2]
[353832311,1740083453510,-500.0,0.00014191,2]
[353832312,1740083453520,-508.27051944,0.00014191,2]
[353832313,1740083453530,-500.0,0.00014191,2]
[353832314,1740083453539,-166.08861043,0.00014191,2]
[353832315,1740083453548,-500.0,0.00014191,2]
[353832316,1740083453558,-500.0,0.00014191,2]
[353832317,1740083453569,-500.0,0.00014191,2]
[353832318,1740083453578,-500.0,0.00014191,2]
[353832319,1740083453587,-500.0,0.00014191,2]
[353832320,1740083453596,-500.0,0.00014191,2]
[353832321,1740083453606,-500.0,0.00014191,2]
[353832322,1740083453615,-500.0,0.00014191,2]
[353832323,1740083453625,-500.0,0.00014191,2]
[353832324,1740083453634,-1344.33,0.00014191,2]
[353832325,1740083453644,-500.0,0.00014191,2]
[353832326,1740083453654,-690.08,0.00014191,2]
[353832327,1740083453663,-500.0,0.00014191,2]
[353832328,1740083453673,-841.22,0.00014191,2]
[353832329,1740083453683,-329.42788432,0.00014191,2]
[353832330,1740083453693,-626.22,0.00014191,2]
[353832331,1740083453705,-500.0,0.00014191,2]
[353832332,1740083453715,-500.0,0.00014191,2]
[353832333,1740083453726,-500.0,0.00014191,2]
[353832334,1740083453735,-500.0,0.00014191,2]
[353832335,1740083453746,-567.91,0.00014191,2]
[353832336,1740083453756,-368.14589646,0.00014191,2]
[353832337,1740083453767,-405.84520701,0.00014191,2]
[353832338,1740083453777,-500.0,0.00014191,2]
[353832339,1740083453786,-500.0,0.00014191,2]
[353832340,1740083453795,-510.4,0.00014191,2]
[353832341,1740083453805,-969.2,0.00014191,2]
[353832342,1740083453818,-622.21,0.00014191,2]
[353832343,1740083453828,-500.0,0.00014191,2]
[353832344,1740083453837,-500.0,0.00014191,2]
[353832345,1740083453847,-541.46,0.00014191,2]
[353832346,1740083453857,-500.0,0.00014191,2]
[353832347,1740083453867,-624.73,0.00014191,2]
[353832348,1740083453876,-500.0,0.00014191,2]
[353832349,1740083453885,-500.0,0.00014191,2]
[353832350,1740083453895,-681.71,0.00014191,2]
[353832351,1740083453905,-1160.78,0.00014191,2]
[353832352,1740083453914,-500.0,0.00014191,2]
[353832353,1740083453923,-565.57,0.00014191,2]
[353832354,1740083453933,-500.0,0.00014191,2]
[353832355,1740083453943,-500.0,0.00014191,2]
[353832356,1740083453952,-500.0,0.00014191,2]
[353832357,1740083453962,-500.0,0.00014191,2]
[353832358,1740083453972,-500.0,0.00014191,2]
[353832359,1740083453981,-508.08,0.00014191,2]
[353832360,1740083453992,-973.34,0.00014191,2]
[353832361,1740083454001,-500.0,0.00014191,2]
[353832362,1740083454010,-500.0,0.00014191,2]
[353832363,1740083454020,-500.0,0.00014191,2]
[353832364,1740083454030,-590.78002538,0.00014191,2]
[353832365,1740083454043,-500.0,0.00014191,2]
[353832366,1740083454052,-735.52,0.00014191,2]
[353832367,1740083454062,-638.61968683,0.00014191,2]
[353832368,1740083454072,-500.0,0.00014191,2]
[353832369,1740083454083,-500.0,0.00014191,2]
[353832370,1740083454092,-578.73,0.00014191,2]
[353832371,1740083454102,-631.42,0.00014191,2]
[353832372,1740083454111,-371.04980612,0.00014191,2]
[353832373,1740083454120,-500.0,0.00014191,2]
[353832374,1740083454130,-500.0,0.00014191,2]
[353832375,1740083454140,-630.95,0.00014191,2]
[353832376,1740083454149,-500.0,0.00014191,2]
[353832377,1740083454159,-500.0,0.00014191,2]
[353832378,1740083454168,-500.0,0.00014191,2]
[353832379,1740083454261,-534.77,0.00014191,2]
[353832380,1740083454272,-500.0,0.00014191,2]
[353832381,1740083454282,-500.0,0.00014191,2]
[353832382,1740083454291,-662.16,0.00014191,2]
[353832383,1740083454301,-3140.73,0.00014191,2]
[353832384,1740083454312,-615.68,0.00014191,2]
[353832385,1740083454322,-547.69,0.00014191,2]
[353832386,1740083454332,-1777.49,0.00014191,2]
[353832387,1740083454342,-500.0,0.00014191,2]
[353832388,1740083454352,-500.0,0.00014191,2]
[353832389,1740083454363,-527.72618606,0.00014191,2]
[353832390,1740083454372,-500.0,0.00014191,2]
[353832391,1740083454382,-500.0,0.00014191,2]
[353832392,1740083454392,-1398.84,0.00014191,2]
[353832393,1740083454401,-730.21,0.00014191,2]
[353832394,1740083454411,-356.15532577,0.00014191,2]
[353832395,1740083454420,-796.15,0.00014191,2]
[353832396,1740083454430,-908.79,0.00014191,2]
[353832397,1740083454440,-549.32,0.00014191,2]
[353832398,1740083454449,-14912.38,0.00014191,2]
[353832399,1740083454459,-500.0,0.00014191,2]
[353832400,1740083454469,-2801.65,0.00014191,2]
[353832401,1740083454479,-445.62761201,0.00014191,2]
[353832402,1740083454488,-500.0,0.00014191,2]
[353832403,1740083454498,-1082.16,0.00014191,2]
[353832404,1740083454507,-42237.27,0.00014191,2]
[353832405,1740083454516,-1101.55,0.00014191,2]
[353832406,1740083454526,-1138.49,0.00014191,2]
[353832407,1740083454536,-2990.03,0.00014191,2]
[353832408,1740083454546,-2277.37,0.00014191,2]
[353832409,1740083454556,-500.0,0.00014191,2]
[353832410,1740083454568,-6484.48,0.00014191,2]
[353832411,1740083454578,-500.0,0.00014191,2]
[353832412,1740083454588,-500.0,0.00014191,2]
[353832413,1740083454599,-1166.9,0.00014191,2]
[353832414,1740083454609,-574.28289416,0.00014191,2]
[353832415,1740083454619,-500.0,0.00014191,2]
[353832416,1740083454628,-500.0,0.00014191,2]
[353832417,1740083454637,-500.0,0.00014191,2]
[353832418,1740083454647,-722.07,0.00014191,2]
[353832419,1740083454656,-514.06,0.00014191,2]
[353832420,1740083454665,-3817.32,0.00014191,2]
[353832421,1740083454675,-2046.35,0.00014191,2]
[353832422,1740083454685,-500.0,0.00014191,2]
[353832423,1740083454695,-3368.27,0.00014191,2]
[353832424,1740083454704,-500.0,0.00014191,2]
[353832425,1740083454714,-560.15,0.00014191,2]
[353832426,1740083454723,-998.57,0.00014191,2]
[353832427,1740083454732,-1492.11,0.00014191,2]
[353832428,1740083454742,-2086.24,0.00014191,2]
[353832429,1740083454752,-500.0,0.00014191,2]
[353832430,1740083454762,-501.01678089,0.00014191,2]
[353832431,1740083454772,-500.0,0.00014191,2]
[353832432,1740083454781,-1276.48,0.00014191,2]
[353832433,1740083454790,-500.0,0.00014191,2]
[353832434,1740083454800,-500.0,0.00014191,2]
[353832435,1740083454811,-500.0,0.00014191,2]
[353832436,1740083454822,-500.0,0.00014191,2]
[353832437,1740083454834,-1532.03,0.00014191,2]
[353832438,1740083454844,-500.0,0.00014191,2]
[353832439,1740083454854,-523.05,0.00014191,2]
[353832440,1740083454864,-500.0,0.00014191,2]
[353832441,1740083454874,-500.0,0.00014191,2]
[353832442,1740083454883,-500.0,0.00014191,2]
[353832443,1740083454894,-500.0,0.00014191,2]
[353832444,1740083454904,-500.0,0.00014191,2]
[353832445,1740083454914,-503.0558322,0.00014191,2]
[353832446,1740083454924,-548.69,0.00014191,2]
[353832447,1740083454933,-730.64,0.00014191,2]
[353832448,1740083454943,-5562.85,0.00014191,2]
[353832449,1740083454953,-1266.77,0.00014191,2]
[353832450,1740083454962,-1810.56,0.00014191,2]
[353832451,1740083454972,-500.0,0.00014191,2]
[353832452,1740083454983,-6428.59,0.00014191,2]
[353832453,1740083454993,-500.0,0.00014191,2]
[353832454,1740083455003,-599.39,0.00014191,2]
[353832455,1740083455013,-13589.0,0.00014191,2]
[353832456,1740083455023,-1627.47,0.00014191,2]
[353832457,1740083455036,-161.081112,0.00014208,2]
[353832458,1740083455046,-180.994,0.00014246,2]
[353832459,1740083455056,-404.52,0.00014273,2]
[353832460,1740083455068,-503.35401563,0.00014273,2]
[353832461,1740083455080,-500.0,0.00014273,2]
[353832462,1740083455090,-500.0,0.00014273,2]
[353832463,1740083455100,-503.11989805,0.00014273,2]
[353832464,1740083455110,-500.0,0.00014273,2]
[353832465,1740083455121,-500.0,0.00014273,2]
[353832466,1740083455131,-500.0,0.00014273,2]
[353832467,1740083455140,-500.0,0.00014273,2]
[353832468,1740083455150,-500.0,0.00014273,2]
[353832469,1740083455159,-500.0,0.00014273,2]
[353832470,1740083455169,-500.0,0.00014273,2]
[353832471,1740083455179,-500.0,0.00014273,2]
[353832472,1740083455188,-500.0,0.00014273,2]
[353832473,1740083455199,-500.0,0.00014273,2]
[353832474,1740083455209,-500.0,0.00014273,2]
[353832475,1740083455218,-1344.33,0.00014273,2]
[353832476,1740083455228,-500.0,0.00014273,2]
[353832477,1740083455238,-690.08,0.00014273,2]
[353832478,1740083455247,-500.0,0.00014273,2]
[353832479,1740083455257,-841.22,0.00014273,2]
[353832480,1740083455267,-626.22,0.00014273,2]
[353832481,1740083455277,-500.0,0.00014273,2]
[353832482,1740083455286,-500.0,0.00014273,2]
[353832483,1740083455296,-500.0,0.00014273,2]
[353832484,1740083455305,-500.0,0.00014273,2]
[353832485,1740083455316,-567.91,0.00014273,2]
[353832486,1740083455325,-500.0,0.00014273,2]
[353832487,1740083455334,-500.0,0.00014273,2]
[353832488,1740083455344,-510.4,0.00014273,2]
[353832489,1740083455354,-969.2,0.00014273,2]
[353832490,1740083455365,-622.21,0.00014273,2]
[353832491,1740083455375,-483.0699101,0.00014273,2]
[353832492,1740083455385,-500.0,0.00014273,2]
[353832493,1740083455395,-541.46,0.00014273,2]
[353832494,1740083455405,-624.73,0.00014273,2]
[353832495,1740083455415,-500.0,0.00014273,2]
[353832496,1740083455425,-500.0,0.00014273,2]
[353832497,1740083455435,-681.71,0.00014273,2]
[353832498,1740083455444,-1160.78,0.00014273,2]
[353832499,1740083455454,-500.0,0.00014273,2]
[353832500,1740083455464,-565.57,0.00014273,2]
[353832501,1740083455474,-500.0,0.00014273,2]
[353832502,1740083455483,-500.0,0.00014273,2]
[353832503,1740083455493,-500.0,0.00014273,2]
[353832504,1740083455503,-500.0,0.00014273,2]
[353832505,1740083455512,-500.0,0.00014273,2]
[353832506,1740083455521,-508.08,0.00014273,2]
[353832507,1740083455531,-973.34,0.00014273,2]
[353832508,1740083455541,-500.0,0.00014273,2]
[353832509,1740083455550,-500.0,0.00014273,2]
[353832510,1740083455560,-500.0,0.00014273,2]
[353832511,1740083455570,-500.0,0.00014273,2]
[353832512,1740083455579,-735.52,0.00014273,2]
[353832513,1740083455590,-151.323662,0.00014273,2]
[353832514,1740083455599,-500.0,0.00014273,2]
[353832515,1740083455609,-500.0,0.00014273,2]
[353832516,1740083455619,-578.73,0.00014273,2]
[353832517,1740083455628,-631.42,0.00014273,2]
[353832518,1740083455638,-500.0,0.00014273,2]
[353832519,1740083455647,-500.0,0.00014273,2]
[353832520,1740083455657,-630.95,0.00014273,2]
[353832521,1740083455667,-500.0,0.00014273,2]
[353832522,1740083455676,-500.0,0.00014273,2]
[353832523,1740083455685,-500.0,0.00014273,2]
[353832524,1740083455695,-534.77,0.00014273,2]
[353832525,1740083455704,-500.0,0.00014273,2]
[353832526,1740083455794,-500.0,0.00014273,2]
[353832527,1740083455803,-662.16,0.00014273,2]
[353832528,1740083455813,-151.0,0.00014273,2]
[353832529,1740083455823,-3140.73,0.00014273,2]
[353832530,1740083455833,-615.68,0.00014273,2]
[353832531,1740083455843,-547.69,0.00014273,2]
[353832532,1740083455856,-1777.49,0.00014273,2]
[353832533,1740083455865,-500.0,0.00014273,2]
[353832534,1740083455875,-500.0,0.00014273,2]
[353832535,1740083455884,-500.0,0.00014273,2]
[353832536,1740083455894,-500.0,0.00014273,2]
[353832537,1740083455905,-1398.84,0.00014273,2]
[353832538,1740083455915,-730.21,0.00014273,2]
[353832539,1740083455926,-152.137845,0.00014273,2]
[353832540,1740083455936,-796.15,0.00014273,2]
[353832541,1740083455946,-151.0,0.00014273,2]
[353832542,1740083455956,-908.79,0.00014273,2]
[353832543,1740083455966,-549.32,0.00014273,2]
[353832544,1740083455976,-14912.38,0.00014273,2]
[353832545,1740083455986,-192.8,0.00014273,2]
[353832546,1740083455996,-158.866005,0.00014273,2]
[353832547,1740083456007,-151.0,0.00014273,2]
[353832548,1740083456017,-192.8,0.00014273,2]
[353832549,1740083456026,-500.0,0.00014273,2]
[353832550,1740083456038,-2801.65,0.00014273,2]
[353832551,1740083456049,-196.012323,0.00014273,2]
[353832552,1740083456060,-500.0,0.00014273,2]
[353832553,1740083456071,-151.0,0.00014273,2]
[353832554,1740083456082,-1082.16,0.00014273,2]
[353832555,1740083456092,-42237.27,0.00014273,2]
[353832556,1740083456103,-1101.55,0.00014273,2]
[353832557,1740083456115,-1138.49,0.00014273,2]
[353832558,1740083456125,-2990.03,0.00014273,2]
[353832559,1740083456135,-2277.37,0.00014273,2]
[353832560,1740083456146,-500.0,0.00014273,2]
[353832561,1740083456156,-6484.48,0.00014273,2]
[353832562,1740083456166,-500.0,0.00014273,2]
[353832563,1740083456177,-500.0,0.00014273,2]
[353832564,1740083456187,-1166.9,0.00014273,2]
[353832565,1740083456197,-500.0,0.00014273,2]
[353832566,1740083456207,-500.0,0.00014273,2]
[353832567,1740083456218,-500.0,0.00014273,2]
[353832568,1740083456228,-722.07,0.00014273,2]
[353832569,1740083456238,-514.06,0.00014273,2]
[353832570,1740083456249,-3817.32,0.00014273,2]
[353832571,1740083456259,-2046.35,0.00014273,2]
[353832572,1740083456269,-500.0,0.00014273,2]
[353832573,1740083456280,-3368.27,0.00014273,2]
[353832574,1740083456290,-500.0,0.00014273,2]
[353832575,1740083456299,-560.15,0.00014273,2]
[353832576,1740083456308,-998.57,0.00014273,2]
[353832577,1740083456317,-1492.11,0.00014273,2]